bitfinex-derivatives/quotes_BNBF0:USTF0_20250406
["timestamp","ask_amount","ask_price","bid_price","bid_amount"]
[1743937744558,0.509,588.77,588.23,0.28469968]
[1743937744759,0.706,588.76,588.23,0.28469968]
[1743937750568,0.706,588.76,588.23,1.55789027]
[1743937750769,0.706,588.76,588.24,0.28469968]
[1743937754471,0.706,588.76,588.23,1.27319059]
[1743937754772,0.706,588.76,588.24,0.28462923]
[1743937754967,0.706,588.76,588.27,1.27319059]
[1743937755270,0.706,588.76,588.28,0.28462923]
[1743937755667,0.509,588.77,588.28,0.28462923]
[1743937757572,0.509,588.77,588.29,0.28462923]
[1743937757775,0.509,588.77,588.24,0.28462923]
[1743937759073,0.73,588.76,588.24,0.28462923]
[1743937759672,0.73,588.76,588.23,1.27319059]
[1743937759977,0.73,588.76,588.24,0.28468163]
[1743937760179,0.73,588.76,588.24,1.55787222]
[1743937760479,0.73,588.76,588.25,0.28468163]
[1743937762481,0.73,588.76,588.23,0.28468163]
[1743937763887,0.58186652,588.75,588.23,0.28468163]
[1743937764188,0.73,588.76,588.23,0.28468163]
[1743937764481,0.5818939,588.75,588.23,0.28468163]
[1743937764683,0.5818939,588.75,588.22,0.34000884]
[1743937764684,0.5818939,588.74,588.22,0.34000884]
[1743937764883,0.73,588.76,588.23,0.28473216]
[1743937765085,0.58186938,588.75,588.23,0.28473216]
[1743937765387,0.58186938,588.74,588.23,0.28473216]
[1743937765586,0.73,588.76,588.23,0.28473216]
[1743937765782,0.58187478,588.75,588.23,0.28473216]
[1743937765985,0.73,588.76,588.23,0.28473216]
[1743937766182,0.5818744,588.75,588.23,0.28473216]
[1743937766385,0.73,588.76,588.23,0.28473216]
[1743937766583,0.58184576,588.75,588.23,0.28473216]
[1743937766885,0.73,588.76,588.23,0.28473216]
[1743937767085,0.58184626,588.75,588.23,0.28473216]
[1743937767283,0.73,588.76,588.23,0.28473216]
[1743937767490,0.58183913,588.75,588.23,0.28473216]
[1743937767689,0.73,588.76,588.23,0.28473216]
[1743937767890,0.58181877,588.75,588.23,0.28473216]
[1743937768189,0.73,588.76,588.22,0.34000884]
[1743937768389,0.58181555,588.75,588.23,0.28477908]
[1743937768588,0.73,588.76,588.23,0.28477908]
[1743937768792,0.58179649,588.75,588.23,0.28477908]
[1743937769090,0.73,588.76,588.23,0.28477908]
[1743937769291,0.58179704,588.75,588.23,0.28477908]
[1743937769492,0.73,588.76,588.23,0.28477908]
[1743937769691,0.58177616,588.75,588.23,0.28477908]
[1743937769892,0.73,588.76,588.23,0.28477908]
[1743937770992,0.565,588.75,588.23,0.28477908]
[1743937776796,0.58167208,588.74,588.22,0.34000884]
[1743937776992,0.58167208,588.73,588.22,0.34000884]
[1743937777191,0.58167208,588.72,588.22,0.34000884]
[1743937777396,0.58167208,588.71,588.22,0.34000884]
[1743937777697,0.58167208,588.7,588.11,1.27319059]
[1743937777995,0.58167208,588.69,588.11,1.27319059]
[1743937778192,0.58167208,588.68,588.11,1.27319059]
[1743937778396,0.58167208,588.67,588.11,1.27319059]
[1743937778596,0.58167208,588.66,588.11,1.27319059]
[1743937778795,0.58167208,588.65,588.11,1.27319059]
[1743937778995,0.58167208,588.64,588.11,1.27319059]
[1743937779193,0.58167208,588.63,588.11,1.27319059]
[1743937779495,0.58143877,588.62,588.11,1.27319059]
[1743937779694,0.58143877,588.61,588.11,1.27319059]
[1743937779896,0.58143877,588.6,588.11,1.27319059]
[1743937780097,0.565,588.75,588.11,1.27319059]
[1743937780299,0.58120195,588.74,588.11,1.27319059]
[1743937780500,0.58120195,588.73,587.82,1.27319059]
[1743937780700,0.58120195,588.72,587.83,0.28507393]
[1743937780896,0.58120195,588.71,587.83,0.28507393]
[1743937781097,0.565,588.75,587.83,0.28507393]
[1743937781098,0.58120195,588.7,587.83,0.28507393]
[1743937781399,0.58099498,588.69,587.84,0.29571971]
[1743937781599,0.58099498,588.68,587.85,0.28507393]
[1743937781796,0.58099498,588.67,587.85,0.28507393]
[1743937781995,0.58099498,588.66,587.85,0.28507393]
[1743937782194,0.58099498,588.65,587.85,0.28507393]
[1743937782395,0.58099498,588.64,587.85,0.28507393]
[1743937782700,0.29571971,588.7,587.85,0.28507393]
[1743937782900,0.58070448,588.69,587.85,0.28507393]
[1743937783100,0.58070448,588.68,587.85,0.28507393]
[1743937783299,0.58070448,588.67,587.85,0.28507393]
[1743937783500,0.58070448,588.66,587.85,0.28507393]
[1743937783697,0.58070448,588.65,587.85,0.28507393]
[1743937784002,0.58070448,588.64,587.85,0.28507393]
[1743937784200,0.58070448,588.69,587.85,0.28507393]
[1743937784501,0.509,588.63,587.85,0.28507393]
[1743937786404,0.509,588.63,587.81,0.28507393]
[1743937786598,0.509,588.63,587.82,0.28510295]
[1743937786799,0.509,588.63,587.81,0.28510295]
[1743937787504,0.509,588.63,587.82,0.29572223]
[1743937787704,0.509,588.63,587.83,0.28510295]
[1743937789506,0.509,588.63,587.77,0.28510295]
[1743937789805,0.509,588.63,587.78,0.28510295]
[1743937790006,0.509,588.63,587.77,1.55829354]
[1743937790206,0.509,588.63,587.78,0.28510295]
[1743937790406,0.509,588.63,587.78,0.58082894]
[1743937790606,0.509,588.63,587.78,0.29572599]
[1743937790907,0.509,588.63,587.79,0.28510628]
[1743937792309,0.509,588.63,587.78,0.28510628]
[1743937792807,0.509,588.63,587.81,1.27319059]
[1743937793011,0.509,588.63,587.82,0.28510628]
[1743937793208,0.509,588.63,587.81,1.27319059]
[1743937793404,0.509,588.63,587.82,0.28513706]
[1743937795609,0.509,588.63,587.83,1.27319059]
[1743937795914,0.509,588.63,587.84,0.28513706]
[1743937797515,0.29571846,588.69,587.84,0.28513706]
[1743937798115,0.57984117,588.74,587.84,0.28513706]
[1743937798308,0.57984117,588.73,587.79,1.27319059]
[1743937798510,0.57984117,588.74,587.8,0.2852042]
[1743937798813,0.57984117,588.73,587.8,0.2852042]
[1743937799011,0.57984117,588.72,587.8,0.2852042]
[1743937799216,0.57984117,588.71,587.8,0.2852042]
[1743937799411,0.57984117,588.7,587.8,0.58093648]
[1743937799615,0.57984117,588.71,587.81,0.2852042]
[1743937799812,0.57984117,588.7,587.81,0.2852042]
[1743937800017,0.57984117,588.69,587.81,0.2852042]
[1743937800217,0.57984117,588.68,587.81,0.2852042]
[1743937800516,0.57984117,588.67,587.81,0.2852042]
[1743937800717,0.57984117,588.66,587.81,0.2852042]
[1743937800915,0.57984117,588.65,587.82,0.28530171]
[1743937801118,0.57978691,588.69,587.81,0.28530171]
[1743937801313,0.57978691,588.68,587.82,0.28530171]
[1743937801515,0.57978691,588.67,587.75,0.28530171]
[1743937801719,0.57978691,588.66,587.76,0.28530171]
[1743937802018,0.57978691,588.65,587.77,0.28530171]
[1743937802218,0.57978691,588.64,587.75,0.28530171]
[1743937802415,0.29575867,588.65,587.76,0.28530171]
[1743937802618,0.57978691,588.64,587.76,0.28530171]
[1743937803220,0.29575867,588.65,587.76,0.28530171]
[1743937804121,0.57978691,588.69,587.76,0.28530171]
[1743937804421,0.29576244,588.64,587.75,0.29576244]
[1743937804620,0.29576244,588.64,587.76,0.28530171]
[1743937807116,0.57978691,588.68,587.76,0.28530171]
[1743937807418,0.29578129,588.63,587.77,0.28530171]
[1743937807622,0.29578129,588.63,587.76,0.28530171]
[1743937808018,0.29578129,588.63,587.77,0.28533555]
[1743937808324,0.29578129,588.63,587.78,0.28533555]
[1743937808618,0.29578129,588.63,587.79,0.28533555]
[1743937808822,0.29578129,588.63,587.8,0.28533555]
[1743937809124,0.57978691,588.62,587.58,1.27319059]
[1743937809323,0.29578129,588.63,587.6,1.56900834]
[1743937809921,0.57978691,588.62,587.6,1.56900834]
[1743937810121,0.57978691,588.61,587.6,1.27319059]
[1743937810318,0.29582278,588.61,587.6,1.56901337]
[1743937811818,0.29582278,588.61,587.6,1.27319059]
[1743937812018,0.87560969,588.61,587.6,1.27319059]
[1743937812222,0.29582278,588.61,587.6,1.27319059]
[1743937812920,0.57978691,588.6,587.52,0.2958429]
[1743937813118,0.57978691,588.68,586.88,1.27319059]
[1743937813318,0.57978691,588.67,586.89,0.28560242]
[1743937813520,0.29593598,588.59,587.52,0.29593598]
[1743937813720,0.33975469,588.66,586.91,0.34076774]
[1743937813924,0.57829198,588.65,586.92,0.28559688]
[1743937814126,0.91805822,588.64,586.94,0.34075033]
[1743937814320,0.57829198,588.63,586.95,0.28559688]
[1743937814520,0.57829198,588.62,586.97,0.34073291]
[1743937814724,0.57829198,588.61,586.97,0.34073291]
[1743937814922,0.57829198,588.6,586.98,0.28559688]
[1743937815121,0.57829198,588.59,586.99,0.28559688]
[1743937815326,0.57829198,588.58,587.0,0.28559657]
[1743937815526,0.57829198,588.57,587.02,0.34070389]
[1743937815727,0.57829198,588.56,587.03,0.28559657]
[1743937816027,0.57829198,588.55,587.05,0.34068648]
[1743937816229,0.57829198,588.54,587.06,0.28559657]
[1743937816425,0.57829198,588.53,587.08,0.34066907]
[1743937816626,0.57829198,588.63,587.09,0.28559657]
[1743937816928,0.57829198,588.62,587.11,0.34065166]
[1743937817128,0.57829198,588.61,587.12,0.28559657]
[1743937817429,0.57829198,588.6,587.14,0.34063426]
[1743937817629,0.577892,588.59,587.27,1.27319059]
[1743937817927,0.577892,588.58,587.29,0.34054725]
[1743937818129,0.577892,588.57,587.3,0.28557435]
[1743937818424,0.577892,588.56,587.32,0.34052986]
[1743937818625,0.577892,588.6,587.33,0.28557435]
[1743937818929,0.577892,588.59,587.33,0.28557435]
[1743937819131,0.577892,588.58,587.33,0.28557435]
[1743937819326,0.577892,588.63,587.34,0.34051826]
[1743937819537,0.577892,588.62,587.35,0.28555115]
[1743937819731,0.577892,588.61,587.36,0.34050667]
[1743937819933,0.577892,588.6,587.37,0.28555115]
[1743937820127,0.577892,588.59,587.38,0.34049507]
[1743937820330,0.577892,588.63,587.39,0.28555115]
[1743937820528,0.29584918,588.59,587.4,0.34048348]
[1743937820727,0.29584918,588.59,587.41,0.28555115]
[1743937820931,0.29584918,588.59,587.42,0.34047189]
[1743937821129,0.87374118,588.59,587.43,0.28555115]
[1743937821331,0.29584918,588.59,587.44,0.3404603]
[1743937821533,0.57775045,588.58,587.45,0.28555115]
[1743937821731,0.57775045,588.58,587.46,0.34044871]
[1743937821927,0.29584918,588.59,587.47,0.28555115]
[1743937822133,0.57775045,588.58,587.48,0.34043712]
[1743937822328,0.57775045,588.57,587.49,0.28555115]
[1743937822529,0.33976624,588.64,587.5,0.34042553]
[1743937822734,0.33976624,588.64,587.51,0.28555115]
[1743937822934,0.33976624,588.64,587.52,0.62598308]
[1743937823128,0.33976624,588.64,587.53,0.28556914]
[1743937823534,0.29582655,588.63,587.53,0.28556914]
[1743937825144,0.91751669,588.64,587.53,0.28556914]
[1743937825343,0.33976624,588.64,587.53,0.28556914]
[1743937826240,0.57775045,588.63,587.53,0.28556914]
[1743937826438,0.57775045,588.62,587.52,0.34041394]
[1743937826738,0.917534,588.61,587.52,0.34041394]
[1743937826942,0.91753978,588.6,587.52,0.34041394]
[1743937827149,0.91754555,588.59,587.52,0.34041394]
[1743937827344,0.91755132,588.58,587.52,0.34041394]
[1743937827545,0.9175571,588.57,587.52,0.34041394]
[1743937827846,0.91756287,588.56,587.52,0.34041394]
[1743937828045,0.91756864,588.55,587.52,0.34041394]
[1743937828249,0.91757442,588.54,587.52,0.34041394]
[1743937828447,0.91758019,588.53,587.52,0.34041394]
[1743937828645,0.91758596,588.52,587.52,0.34041394]
[1743937828842,0.57775045,588.51,587.52,0.34041394]
[1743937829144,0.57775045,588.5,587.52,0.34041394]
[1743937829344,0.57775045,588.49,587.52,0.34041394]
[1743937829545,0.57775045,588.48,587.52,0.34041394]
[1743937829742,0.57775045,588.47,587.52,0.34041394]
[1743937830041,0.57775045,588.46,587.52,0.34041394]
[1743937830241,0.57775045,588.45,587.52,0.34041394]
[1743937830447,0.57687785,588.44,587.53,0.28571382]
[1743937830746,0.2959234,588.5,587.53,0.28571382]
[1743937830747,0.57687785,588.43,587.53,0.28571382]
[1743937830942,0.57687785,588.42,587.53,0.28571382]
[1743937831146,0.57687785,588.41,587.53,0.28571382]
[1743937831347,0.57687785,588.4,587.52,0.34041394]
[1743937831541,0.57687785,588.39,587.52,0.34041394]
[1743937831745,0.57687785,588.38,587.52,0.34041394]
[1743937832046,0.9168,588.37,587.23,0.29594227]
[1743937832244,0.91672307,588.36,587.23,0.29594227]
[1743937832445,0.91672885,588.35,587.23,0.29594227]
[1743937832739,0.57679514,588.34,587.23,0.29594227]
[1743937832945,0.57679514,588.33,587.23,0.29594227]
[1743937833147,0.57679514,588.32,587.23,0.29594227]
[1743937833347,0.57679514,588.31,587.23,0.29594227]
[1743937833548,0.57679514,588.32,587.23,0.29594227]
[1743937833748,0.57679514,588.31,587.23,0.29594227]
[1743937833941,0.57679514,588.32,587.23,0.29594227]
[1743937834142,0.57679514,588.31,586.42,1.27319059]
[1743937834447,0.87289731,588.3,587.23,0.29610217]
[1743937834642,0.29610217,588.3,587.23,0.29610217]
[1743937834847,0.29610217,588.3,586.42,1.27319059]
[1743937835046,0.29610217,588.3,586.44,0.34104085]
[1743937835445,0.29610217,588.3,586.45,0.58183933]
[1743937835648,0.87289731,588.3,586.46,0.28573716]
[1743937835843,0.29610217,588.3,586.46,0.28573716]
[1743937836047,0.29610217,588.3,586.45,0.29610217]
[1743937836048,0.29610217,588.3,586.47,0.28574147]
[1743937836249,0.57640921,588.29,586.49,0.34101178]
[1743937836447,0.57640921,588.28,586.5,0.28574147]
[1743937836646,0.57640921,588.29,586.52,0.34099433]
[1743937836849,0.57640921,588.28,586.53,0.28574147]
[1743937837047,0.57640921,588.29,586.55,0.34097689]
[1743937837251,0.57620568,588.28,586.56,0.28574147]
[1743937837449,0.57620568,588.32,586.58,0.34095945]
[1743937837650,0.57620568,588.31,586.59,0.28574147]
[1743937837852,0.57605925,588.3,586.61,0.34094202]
[1743937838050,0.57605925,588.29,586.62,0.28574147]
[1743937838251,0.57605925,588.28,586.64,0.34092458]
[1743937838446,0.57605925,588.27,586.65,0.28574147]
[1743937838649,0.57605925,588.28,586.66,0.28574147]
[1743937838850,0.57605925,588.27,586.67,0.28574147]
[1743937839054,0.57605925,588.26,586.66,1.27319059]
[1743937839253,0.57605925,588.28,586.67,0.28575754]
[1743937839452,0.57605925,588.27,586.67,0.28575754]
[1743937839653,0.57605925,588.28,586.67,0.28575754]
[1743937839851,0.57605925,588.27,586.67,0.28575754]
[1743937840048,0.57605925,588.26,586.67,0.28575754]
[1743937840249,0.57605925,588.25,586.67,0.28575754]
[1743937840455,0.57453681,588.24,586.67,0.28575754]
[1743937840756,0.57453681,588.23,586.67,0.28575754]
[1743937840953,0.57453681,588.22,586.71,1.27319059]
[1743937841149,0.57453681,588.21,586.71,1.27319059]
[1743937841352,0.88742329,588.2,586.72,0.28575754]
[1743937841553,0.88742329,588.19,586.72,0.28575754]
[1743937841752,0.88742329,588.18,586.72,0.28575754]
[1743937841952,0.57453681,588.17,586.72,0.28575754]
[1743937842153,0.57453681,588.16,586.72,0.28575754]
[1743937842454,0.34005508,588.14,586.72,0.28575754]
[1743937842655,0.57453681,588.13,586.72,0.28575754]
[1743937842850,0.34007243,588.11,586.72,0.28575754]
[1743937843050,0.57453681,588.1,586.72,0.28575754]
[1743937843253,0.57453681,588.09,586.72,0.28575754]
[1743937843452,0.34009556,588.07,586.72,0.28575754]
[1743937843656,0.57453681,588.06,586.65,0.28575754]
[1743937843950,0.34011291,588.04,586.66,0.28575754]
[1743937844155,0.8874527,588.03,586.65,0.28575754]
[1743937844354,0.34013026,588.01,586.65,0.28575754]
[1743937844549,0.8874527,588.0,586.65,0.28575754]
[1743937844754,0.65305772,587.99,586.65,0.28575754]
[1743937844955,0.65306351,587.98,586.65,0.28575754]
[1743937845151,0.3401534,587.97,586.65,0.28575754]
[1743937845355,0.31291589,587.96,586.65,0.28575754]
[1743937845652,0.34016498,587.95,586.65,0.28575754]
[1743937846258,0.31293473,587.94,586.65,0.28575754]
[1743937846458,0.34017655,587.93,586.65,0.28575754]
[1743937847455,0.29621433,587.92,586.65,0.28575754]
[1743937847656,0.29621433,587.92,586.66,0.34091296]
[1743937847854,0.29621433,587.92,586.67,0.28575754]
[1743937849064,0.34018812,587.91,586.68,0.34090134]
[1743937849258,0.34018812,587.91,586.69,0.28575754]
[1743937849456,0.34018812,587.91,586.7,0.34088972]
[1743937849659,0.34018812,587.91,586.71,0.28575754]
[1743937849859,0.34018812,587.91,586.72,0.3408781]
[1743937850060,0.34018812,587.91,586.73,0.28575754]
[1743937850257,0.34018812,587.91,586.74,0.34086648]
[1743937850457,0.34018812,587.91,586.75,0.28575754]
[1743937850659,0.34018812,587.91,586.76,0.34085486]
[1743937850857,0.34018812,587.91,586.77,0.28575754]
[1743937851062,0.34018812,587.91,586.78,0.34084324]
[1743937851360,0.34018812,587.91,586.79,0.28575754]
[1743937851562,0.34018812,587.91,586.8,0.34083162]
[1743937851755,0.34018812,587.91,586.81,0.28575754]
[1743937852854,0.34018812,587.91,586.8,0.34083162]
[1743937853363,0.29621433,587.9,586.8,0.34083162]
[1743937853557,0.34019969,587.89,586.8,0.34083162]
[1743937853758,0.96619969,587.89,586.81,0.28603272]
[1743937854556,0.96619969,587.89,586.8,0.34083162]
[1743937855662,0.96619969,587.89,586.81,0.28603283]
[1743937855961,0.96619969,587.89,586.8,0.34083162]
[1743937856356,0.29637578,587.88,586.8,0.34083162]
[1743937858261,0.96619969,587.89,586.8,0.34083162]
[1743937859464,0.29638209,587.88,586.8,0.34083162]
[1743937860670,0.29638209,587.88,586.81,0.28599779]
[1743937861270,0.96619969,587.89,586.81,0.28599779]
[1743937862266,0.96619969,587.89,586.8,0.34083162]
[1743937862464,0.29620551,587.88,586.81,0.28598321]
[1743937863667,0.29620551,587.88,586.8,0.34083162]
[1743937863872,0.29620551,587.88,586.82,0.28597648]
[1743937864171,0.96619969,587.89,586.83,0.28597648]
[1743937864370,0.96619969,587.89,586.81,0.28597648]
[1743937864568,0.96619969,587.89,586.82,0.62679649]
[1743937864871,0.96619969,587.89,586.83,0.62679068]
[1743937865168,0.96619969,587.89,586.84,0.62678487]
[1743937865373,0.96619969,587.89,586.85,0.62677907]
[1743937865574,0.29617651,587.88,586.86,0.62677326]
[1743937865874,0.29617651,587.88,586.87,0.28597648]
[1743937867274,0.96619969,587.89,586.87,0.28597648]
[1743937868473,0.29619794,587.88,586.87,0.28597648]
[1743937870373,0.506,587.87,586.86,0.34079678]
[1743937870578,0.80219794,587.87,586.86,0.34079678]
[1743937873179,0.506,587.87,586.86,0.34079678]
[1743937873581,0.29621055,587.86,586.86,0.34079678]
[1743937875081,0.29621055,587.86,586.87,0.28596512]
[1743937875482,0.29621055,587.86,586.86,0.34079678]
[1743937875674,0.29621055,587.86,586.87,0.28596517]
[1743937876075,0.506,587.87,586.87,0.28596517]
[1743937876483,0.29620551,587.85,586.87,0.28596517]
[1743937878082,0.29620551,587.85,586.86,0.34079678]
[1743937879176,0.506,587.87,586.86,0.34079678]
[1743937879377,0.29627612,587.84,586.86,0.34079678]
[1743937881187,0.621,587.83,586.86,0.34079678]
[1743937881579,0.3402402,587.82,586.86,0.34079678]
[1743937882679,0.29625846,587.81,586.86,0.34079678]
[1743937882878,0.86824122,587.81,586.86,0.34079678]
[1743937883079,0.29625846,587.81,586.87,0.28603895]
[1743937883378,0.57198276,587.8,586.87,0.28603895]
[1743937883576,0.57198276,587.8,586.86,0.34079678]
[1743937884284,0.57198276,587.79,586.86,0.34079678]
[1743937884582,0.57422191,587.78,586.86,0.34079678]
[1743937884782,0.57422191,587.8,586.86,0.34079678]
[1743937884976,0.57422191,587.79,586.86,0.34079678]
[1743937885180,0.57422191,587.78,586.86,0.34079678]
[1743937885380,0.57422191,587.77,586.86,0.34079678]
[1743937885578,0.57422191,587.76,586.86,0.34079678]
[1743937885785,0.57422191,587.77,586.86,0.34079678]
[1743937885982,0.57422191,587.76,586.86,0.34079678]
[1743937886186,0.57422191,587.77,586.86,0.34079678]
[1743937886384,0.57504919,587.76,586.86,0.34079678]
[1743937886579,0.57504919,587.75,586.86,0.34079678]
[1743937886880,0.57504919,587.77,586.86,0.34079678]
[1743937887081,0.29626603,587.78,586.86,0.34079678]
[1743937887082,0.57504919,587.76,586.86,0.34079678]
[1743937887282,0.57504919,587.75,586.86,0.34079678]
[1743937887487,0.57504919,587.74,586.86,0.34079678]
[1743937887785,0.57504919,587.77,586.86,0.34079678]
[1743937887979,0.57504919,587.76,586.86,0.34079678]
[1743937888180,0.57504919,587.75,586.86,0.34079678]
[1743937888383,0.57504919,587.74,586.86,0.34079678]
[1743937888589,0.57504919,587.73,586.86,0.34079678]
[1743937888785,0.57504919,587.74,586.86,0.34079678]
[1743937889087,0.57504919,587.73,586.86,0.34079678]
[1743937889288,0.57504919,587.72,586.86,0.34079678]
[1743937889482,0.57504919,587.74,586.86,0.34079678]
[1743937889682,0.57504919,587.73,586.86,0.34079678]
[1743937889883,0.57504919,587.72,586.86,0.34079678]
[1743937890088,0.57504919,587.71,586.86,0.34079678]
[1743937890285,0.57504919,587.7,586.86,0.34079678]
[1743937890490,0.57504919,587.74,586.86,0.34079678]
[1743937890690,0.57504919,587.73,586.86,0.34079678]
[1743937890888,0.57504919,587.72,586.86,0.34079678]
[1743937891087,0.57504919,587.71,586.86,0.34079678]
[1743937891291,0.57504919,587.7,586.86,0.34079678]
[1743937891494,0.57504919,587.69,586.86,0.34079678]
[1743937891694,0.57504919,587.81,586.86,0.34079678]
[1743937891995,0.57504919,587.8,586.86,0.34079678]
[1743937892195,0.57504919,587.79,586.86,0.34079678]
[1743937892391,0.57504919,587.78,586.86,0.34079678]
[1743937892590,0.57504919,587.77,586.86,0.34079678]
[1743937892790,0.57504919,587.76,586.86,0.34079678]
[1743937892991,0.57504919,587.75,586.86,0.34079678]
[1743937893195,0.57504919,587.74,586.86,0.34079678]
[1743937893395,0.57504919,587.73,586.87,0.28603907]
[1743937893590,0.57504919,587.72,586.87,0.28603907]
[1743937893895,0.57504919,587.71,586.87,0.28603907]
[1743937894195,0.57504919,587.7,586.87,0.28603907]
[1743937894398,0.57504919,587.69,586.87,0.28603907]
[1743937894598,0.57504919,587.68,586.87,0.28603907]
[1743937894893,0.57504919,587.67,586.86,0.34079678]
[1743937895093,0.57504919,587.66,586.86,0.34079678]
[1743937895297,0.57504919,587.65,586.86,0.34079678]
[1743937895493,0.57767402,587.64,586.87,0.28603036]
[1743937895699,0.57767402,587.65,586.87,0.28603036]
[1743937895896,0.57767402,587.64,586.86,0.34079678]
[1743937896199,0.57767402,587.63,586.86,0.34079678]
[1743937896395,0.57767402,587.62,586.86,0.34079678]
[1743937896599,0.57767402,587.61,586.86,0.34079678]
[1743937896895,0.57767402,587.6,586.86,0.34079678]
[1743937897099,0.57767402,587.65,586.86,0.34079678]
[1743937897299,0.57767402,587.64,586.86,0.34079678]
[1743937897499,0.29628494,587.59,586.86,0.34079678]
[1743937897701,0.57848157,587.58,586.86,0.34079678]
[1743937897903,0.57848157,587.57,586.86,0.34079678]
[1743937898101,0.57848157,587.56,586.86,0.34079678]
[1743937898302,0.57848157,587.55,586.86,0.34079678]
[1743937898501,0.57848157,587.54,586.86,0.34079678]
[1743937898702,0.57848157,587.53,586.86,0.34079678]
[1743937898996,0.57848157,587.52,586.86,0.34079678]
[1743937899202,0.57848157,587.51,586.86,0.34079678]
[1743937899402,0.57848157,587.5,586.86,0.34079678]
[1743937899702,0.57848157,587.49,586.86,0.34079678]
[1743937899902,0.57848157,587.48,586.86,0.34079678]
[1743937900202,0.57848157,587.47,586.87,0.28603305]
[1743937900497,0.57848157,587.46,586.87,0.28603305]
[1743937900696,0.57848157,587.45,586.87,0.28603305]
[1743937900900,0.29629377,587.55,586.87,0.28603305]
[1743937901200,0.57970115,587.54,586.87,0.28603305]
[1743937901401,0.57970115,587.53,586.87,0.28603305]
[1743937901598,0.57970115,587.52,586.87,0.28603305]
[1743937901801,0.57970115,587.51,586.87,0.28603305]
[1743937901999,0.57970115,587.5,586.87,0.28603305]
[1743937902199,0.57970115,587.49,586.87,0.28603305]
[1743937902398,0.57970115,587.48,586.87,0.28603305]
[1743937902705,0.57970115,587.47,586.87,0.28603305]
[1743937903004,0.29629377,587.55,586.87,0.28603305]
[1743937903005,0.57967588,587.46,586.87,0.28603305]
[1743937903198,0.57967588,587.45,586.87,0.28603305]
[1743937903402,0.637,587.79,586.87,0.28603305]
[1743937903703,0.29625846,587.51,586.86,0.34079678]
[1743937903903,0.57972629,587.5,586.87,0.28603403]
[1743937904103,0.57972629,587.49,586.87,0.28603403]
[1743937904299,0.57972629,587.48,586.87,0.28603403]
[1743937904500,0.57972629,587.47,586.87,0.28603403]
[1743937904701,0.57972629,587.46,586.87,0.28603403]
[1743937904902,0.57972629,587.45,586.87,0.28603403]
[1743937905097,0.34026336,587.78,586.87,0.28603403]
[1743937905301,0.29625972,587.51,586.87,0.28603403]
[1743937905497,0.57985048,587.5,586.86,0.34079678]
[1743937905701,0.57985048,587.49,586.87,0.28603378]
[1743937905901,0.57985048,587.48,586.87,0.28603378]
[1743937906098,0.57985048,587.47,586.87,0.28603378]
[1743937906301,0.57985048,587.46,586.87,0.28603378]
[1743937906501,0.57987961,587.45,586.87,0.28603378]
[1743937906700,0.34026336,587.78,586.87,0.28603378]
[1743937906906,0.57987909,587.77,586.88,0.2860337]
[1743937907108,0.57987909,587.76,586.86,0.34079678]
[1743937907300,0.57987909,587.75,586.87,0.28600997]
[1743937907505,0.57987909,587.74,586.87,0.28600997]
[1743937907704,0.57987909,587.73,586.87,0.28600997]
[1743937907906,0.57987909,587.72,586.87,0.28600997]
[1743937908204,0.57987909,587.71,586.87,0.28600997]
[1743937908406,0.57987909,587.7,586.87,0.28600997]
[1743937908605,0.57987909,587.69,586.87,0.28600997]
[1743937908809,0.57987909,587.68,586.86,0.34079678]
[1743937909004,0.57987909,587.67,586.87,0.28600791]
[1743937909210,0.57987909,587.66,586.87,0.28600791]
[1743937909402,0.57987909,587.65,586.87,0.28600791]
[1743937909607,0.57987909,587.64,586.87,0.28600791]
[1743937909808,0.57987909,587.63,586.87,0.28600791]
[1743937910009,0.57987909,587.62,586.87,0.28600791]
[1743937910207,0.57987909,587.61,586.87,0.28600791]
[1743937910410,0.57987909,587.6,586.87,0.28600791]
[1743937910612,0.57987909,587.59,586.86,0.34079678]
[1743937910814,0.57987909,587.58,586.87,0.28600332]
[1743937911012,0.57987909,587.57,586.87,0.28600332]
[1743937911208,0.57987909,587.56,586.87,0.28600332]
[1743937911406,0.57987909,587.55,586.87,0.28600332]
[1743937911608,0.57987909,587.54,586.87,0.28600332]
[1743937911910,0.58005194,587.53,586.87,0.28600332]
[1743937912110,0.58005194,587.52,586.87,0.28600332]
[1743937912415,0.58005194,587.51,586.88,0.28600768]
[1743937912611,0.29622568,587.65,586.89,0.28600768]
[1743937912811,0.5801059,587.64,586.87,0.28600768]
[1743937913009,0.5801059,587.63,586.88,0.28600768]
[1743937913208,0.5801059,587.62,586.87,0.28600768]
[1743937913511,0.5801059,587.61,586.87,0.28600768]
[1743937913712,0.5801059,587.6,586.87,0.28600768]
[1743937913913,0.5801059,587.59,586.87,0.28600768]
[1743937914114,0.5801059,587.58,586.87,0.28600768]
[1743937914415,0.5801059,587.57,586.87,0.28600768]
[1743937914616,0.5801059,587.56,586.87,0.28600768]
[1743937914815,0.5801059,587.55,586.93,1.27319059]
[1743937915016,0.5801059,587.54,586.94,0.28600768]
[1743937915315,0.5801059,587.53,586.94,0.28600768]